Workbook

Sheet Açıklama
C7: HAZIRLAYAN: YASİN ENGİN (İnş.Yük.Müh)
C11: www.betonvecimento.com
C13: yasin.engin@gmail.com
C15: Güncelleme Kontrol Et | K15: Versiyon 5 | L15: Ocak,2016
D16: TIKLA TAKİP ET!
C18: AÇIKLAMALAR
C19: 1 | D19: Makronuzu etkinleştiriniz.
C20: 2 | D20: Maliyet Hesabı sayfasındaki sarı hücrelere veri girişi yapınız.
C21: 3 | D21: Maliyet Hesabı sayfasında yer alan "sabit maliyet" kısmı için hesapla düğmesine tıklayınız.
C22: 4 | D22: Sabit Maliyet sayfasında iki yöntem mevcuttur. Sarı hücrelere veri girip hesaplama yapabilirsiniz ya da turuncu hücrelere manuel giriş yapabilirsiniz. Bu durumda otomatik formülasyon iptal olur.
C23: 5 | D23: Sabit Maliyet sayfasında normal amortisman hesabı yapabilirsiniz. Bu hesaplama linear olarak hesaplanır. Aylık beton üretim miktarını girdiğinizde Maliyet Hesabı sayfasında birim sabit maliyet otomatik olarak hesaplanır.
C24: 6 | D24: Hacim-Birim Maliyet sayfasındaki hesaplamalar daha önce girilen verileri referans alır. Sadece sarı renkli hücrelere veri girişi yapılmalıdır.
C25: 7 | D25: Day.Sınıfında Göre Maliyet Hesabı daha önceki verilerden bağımsızdır. Buradaki analiz farklı beton reçetelerindeki dayanım-maliyet ilişkisi üzerinedir. Bu sayfadaki ortalama dayanım satırındaki hücreler boş bırakılırsa karakteristik küp basınç dayanımı kullanılır.
C26: 8 | D26: Karlılık Analizi sayfasında Day.Sınıfında Göre Maliyet Hesabı sayfasındaki veriler kullanılmaktadır. Sadece sarı renkli hücrelere satış fiyatı bilgisi girilmelidir.

Sheet Maliyet Hesabı
B2: SARI RENKLİ HÜCRELERE VERİ GİRİNİZ | V2: C16/20
B3: C55/67 | C3: Miktar (kg/m3) | D3: Birim fiyat (TL/ton) | E3: Nakliye mesafesi(km) | F3: Nakliye Masrafı(TL./ton.km) | G3: Maliyet (TL) | V3: C20/25
B4: 1 NO | C4: 510 | D4: 12 | E4: 20 | F4: 0.1 | G4: =C4*(D4+2*E4*F4)/1000 -> 8.16 | V4: C25/30
B5: 2 NO | C5: 500 | D5: 12 | E5: 25 | F5: 0.1 | G5: =C5*(D5+2*E5*F5)/1000 -> 8.5 | V5: C30/37
B6: TAŞ TOZU | C6: 500 | D6: 12 | E6: 25 | F6: 0.1 | G6: 8.5 | V6: C35/45
B7: KUM | C7: 380 | D7: 20 | E7: 30 | F7: 0.1 | G7: 9.88 | V7: C40/50
B8: GERİ DÖN. AGREGA | C8: 0 | D8: 0 | G8: 0 | V8: C45/55
B9: SU | C9: 100 | D9: 3 | G9: 0.3 | V9: C50/60
B10: GERİ DÖN. SU | C10: 60 | D10: 0 | G10: 0 | V10: C55/67
B11: ÇİMENTO | C11: 250 | D11: 175 | G11: 43.75 | V11: C60/75
B12: CÜRUF/U.KÜL | C12: 50 | D12: 130 | G12: 6.5 | V12: C70/85
B13: ELYAF/ÇELİK LİF | C13: 0 | D13: 0 | G13: 0 | V13: C80/95
B14: KATKI | C14: 4.5 | D14: 1200 | G14: 5.4 | V14: C90/105
B15: TOPLAM | C15: =SUM(C4:C14) -> 2354.5 | D15: HAMMADDE MALİYETİ | G15: =SUM(G4:G14) -> 90.99 | V15: C100/115
B16: OPERASYONEL GİDERLER | E16: SABİT MALİYET | F16: ='Sabit Maliyet'!J9 -> 17.54400028 | G16: =C26 -> 2
B17: YÜKLÜ Mikser yakıt sarfiyatı (litre/km) | C17: 0.85 | E17: OPER. GİDERLER | F17: =SUM(C26,C25,C24,C23) -> 13.83 | G17: =F16 -> 17.54400028
B18: BOŞ Mikser yakıt sarfiyatı (litre/km) | C18: 0.55 | G18: =C23 -> 1
B19: Pompalama yakıt sarfiyatı(litre/m3) | C19: 0.85 | G19: =C24 -> 7.6
B20: Mazot fiyat(TL/L) | C20: 3.8 | E20: TOPLAM MALİYET (TL/m3) | F20: =G15+C23+C24+C25+F16+C26 -> 122.3640003 | G20: =C25 -> 3.23
B21: Mikser yükü(m3) | C21: 7 | G21: (KDV hariç)
B22: Şantiye uzaklık (km) | C22: 10 | G22: =C25 -> 3.23
B23: Elektrik (TL/m3) | C23: 1 | E23: SATIŞ FİYATI | F23: 130 | G23: (KDV hariç)
B24: Nakliye (TL/m3) | C24: =C22*C17*C20/C21+C22*C18*C20/C21 -> 7.6
B25: Pompalama (TL/m3) | C25: =C20*C19 -> 3.23 | E25: NET KAR | F25: =(F23-F20) -> 7.635999719 | G25: =F25/F20 -> 0.06240397259
B26: Diğer Operasyonel Giderler(TL/m3) | C26: 2
B27: DİĞER OPERASYONEL | M27: Min | N27: 100
B28: SABİT GİDER | M28: Max | N28: 125
B29: ELEKTRİK
B30: NAKLİYE | L30: Value | M30: Degs | O30: x | P30: y
B31: POMPALAMA | K31: Min | L31: =N27 -> 100 | M31: 0 | O31: =50-(50*COS(RADIANS(M33))) -> 97.28183576 | P31: =50*SIN(RADIANS(M33)) -> 16.26124247
B32: AMORTİSMAN | F32: Hammadde | G32: =G15 -> 90.99 | K32: Max | L32: =N28 -> 125 | M32: 180 | O32: =50-(2*COS(RADIANS(M33+90))) -> 50.6504497 | P32: =2*SIN(RADIANS(M33+90)) -> -1.891273431
F33: Sabit Gider | G33: =F16 -> 17.54400028 | K33: Actual | L33: =F20 -> 122.3640003 | M33: =((L33-L31)/(L32-L31))*180 -> 161.020802 | O33: =50-(2*COS(RADIANS(M33-90))) -> 49.3495503 | P33: =2*SIN(RADIANS(M33-90)) -> 1.891273431
F34: Nakliye | G34: =C24 -> 7.6 | K34: Scale1 | L34: =(($L$32-$L$31)/5)+L31 -> 105 | O34: =O31 -> 97.28183576 | P34: =P31 -> 16.26124247
F35: Pompalama | G35: =C25 -> 3.23 | K35: Scale2 | L35: =(($L$32-$L$31)/5)+L34 -> 110 | O35: 50 | P35: 0
F36: Elektrik | G36: =C23 -> 1 | K36: Scale3 | L36: =(($L$32-$L$31)/5)+L35 -> 115
F37: Diğer | G37: =C26 -> 2 | K37: Scale4 | L37: 120
G38: =SUM(G32:G37) -> 122.3640003

Sheet Sabit Maliyet
B1: AYLIK SABİT GİDER | C1: Manuel Giriş
A2: MALZEME | B2: =IF(C2="",SUM(B3:B10),C2) -> 2400 | F2: Toplam Aylık Sabit Maliyet | J2: Aylık Ortalama Üretim (m3)
A3: Yedek Parça | B3: 500
A4: Temizlik Malzemeleri | B4: 200 | F4: =B2+B12+B21+B46 -> 219300.0035 | J4: 12500
A5: Elektrik Malzemeleri | B5: 300
A6: Küçül El Aletleri | B6: 100
A7: Atölye ve Laboratuvar Malzemeleri | B7: 100 | F7: Toplam Günlük Sabit Maliyet | J7: Sabit Gider (TL/m3)
A8: Kişisel Koruyucu Ekipman - İş Elbisesi | B8: 100
A9: İnşaat Bakım Malzemeleri | B9: 100 | F9: =F4/30 -> 7310.000117 | J9: =IF(M10="",F4/J4,M10) -> 17.54400028 | M9: Manuel Giriş
A10: Diğer Malzemeler | B10: 1000
C11: Manuel Giriş
A12: ÜRETİM İŞÇİLİK GİDERLERİ | B12: =IF(C12="",SUM(B13:B19),C12) -> 144000 | J12: Amortisman (TL/m3) | L12: =B46/J4 -> 4
A13: Brüt Ücret | B13: 120000
A14: Mesai | B14: 5000 | F14: SARI RENKLİ HÜCRELERE VERİ GİRİNİZ.
A15: Prim | B15: 5000
A16: Yemek | B16: 5000
A17: Ulaşım | B17: 2000
A18: Personel Sigorta (sağlık-kaza vb.) | B18: 5000
A19: Diğer | B19: 2000
C20: Manuel Giriş
A21: DİĞER GİDERLER | B21: =IF(C21="",SUM(B22:B44),C21) -> 22900.00351
A22: Jeneratör (Motorin) | B22: 1000
A23: Su | B23: 500
A24: Doğal Gaz (Isınma) | B24: 1000
A25: Elektrik ( Üretim dışı ) | B25: 1000
A26: Gayrimenkul Kiraları | B26: 0
A27: Makine Kiraları | B27: 0
A28: Bakım/Onarım/Temizlik | B28: 0
A29: Oto Kiralama | B29: 4000
A30: Bilgi İşlem | B30: 200
A31: Müşavirlik-Danışmanlık | B31: 1000
A32: Personel Sigorta (sağlık-kaza vb.) | B32: 0.003510606513
A33: Diğer Sigorta Giderleri | B33: 5000
A34: Telefon-İnternet-Kargo | B34: 1000
A35: Kırtasiye | B35: 200
A36: Reklam/İlan | B36: 500
A37: Levha/Pano | B37: 1000
A38: Temsil | B38: 1000
A39: Tazminat ve Cezalar | B39: 1000
A40: Mutfak | B40: 500
A41: Çevre/Temizlik Vergisi | B41: 500 | E41: Duran Varlık Toplamı (TL) | H41: 3700000 | J41: VARLIKLAR | L41: MALİYET
A42: İhale ve Mukavele | B42: 500 | E42: Hurda değeri (TL) | H42: 700000 | J42: SANTRAL | L42: 1000000
A43: Harçlar ve Aidatlar | B43: 2000 | E43: Hizmet Ömrü | H43: 5 | J43: TRANMİKSERLER | L43: 1200000
A44: Diğer | B44: 1000 | E44: Yıllık Amortisman | H44: =(H41-H42)/H43 -> 600000 | J44: POMPALAR | L44: 900000
C45: Manuel Giriş | J45: KAMYONLAR | L45: 600000
A46: AMORTİSMAN | B46: =IF(C46="",H44/12,C46) -> 50000 | J46: KEPÇE | L46: 120000
J47: SİLOBAS | L47: 200000
A48: Amortisman Ayırma Şartları: - İşletmede bir yıldan fazla kullanılabilir olması - Yıpranmaya, aşınmaya veya kıymetten düşmeye maruz bulunması - Değerleme gününde envantere dahil ve kullanıma hazır olması - İktisadi kıymetin değerinin 880 TL’yi (2015 yılı için) aşması | J48: LABORATUVAR | L48: 50000
J49: OFİS DEMİRBAŞ | L49: 50000
J50: PREFABRİK YAPILAR | L50: 30000
J51: BİNEK ARAÇLAR | L51: 100000
J52: DİĞER | L52: 150000
J53: TOPLAM | L53: =SUM(L42:L52) -> 4400000
A54: 2015 yılı amortisman oranları

Sheet Maliyet Kırılım
B2: Aylık Ortalama Üretim (m3) | C2: ='Sabit Maliyet'!J4 -> 12500
B3: Hammadde | C3: ='Maliyet Hesabı'!G15 -> 90.99 | D3: =C3/$C$8 -> 0.7436010574
B4: Operasyonel(yakıt-enerji) | C4: ='Maliyet Hesabı'!F17 -> 13.83 | D4: =C4/$C$8 -> 0.113023438
B5: İşçilik | C5: ='Sabit Maliyet'!B12/'Sabit Maliyet'!J4 -> 11.52 | D5: 0.09414533665
B6: Malzeme, Bakım ve Diğer | C6: =('Sabit Maliyet'!B2+'Sabit Maliyet'!B21)/'Sabit Maliyet'!J4 -> 2.024000281 | D6: 0.01654081491
B7: Amortisman | C7: ='Sabit Maliyet'!L12 -> 4 | D7: 0.032689353
B8: Toplam | C8: =SUM(C3:C7) -> 122.3640003 | D8: 1

Sheet Hacim-Birim Maliyet
A2: AYLIK ORTALAMA ÜRETİM | B2: 3000 | C2: 5000 | D2: 7500 | E2: 10000 | F2: 12000 | G2: 15000 | H2: 17500 | I2: 20000 | J2: 25000 | K2: 30000
A3: AYLIK DEĞİŞKEN MALİYET | B3: =('Maliyet Hesabı'!$F$17+'Maliyet Hesabı'!$G$15)*B2 -> 314460 | C3: =('Maliyet Hesabı'!$F$17+'Maliyet Hesabı'!$G$15)*C2 -> 524100 | D3: =('Maliyet Hesabı'!$F$17+'Maliyet Hesabı'!$G$15)*D2 -> 786150 | E3: =('Maliyet Hesabı'!$F$17+'Maliyet Hesabı'!$G$15)*E2 -> 1048200 | F3: =('Maliyet Hesabı'!$F$17+'Maliyet Hesabı'!$G$15)*F2 -> 1257840 | G3: =('Maliyet Hesabı'!$F$17+'Maliyet Hesabı'!$G$15)*G2 -> 1572300 | H3: =('Maliyet Hesabı'!$F$17+'Maliyet Hesabı'!$G$15)*H2 -> 1834350 | I3: =('Maliyet Hesabı'!$F$17+'Maliyet Hesabı'!$G$15)*I2 -> 2096400 | J3: =('Maliyet Hesabı'!$F$17+'Maliyet Hesabı'!$G$15)*J2 -> 2620500 | K3: =('Maliyet Hesabı'!$F$17+'Maliyet Hesabı'!$G$15)*K2 -> 3144600
A4: AYLIK SABİT MALİYET | B4: ='Sabit Maliyet'!$F$4 -> 219300.0035 | C4: ='Sabit Maliyet'!$F$4 -> 219300.0035 | D4: ='Sabit Maliyet'!$F$4 -> 219300.0035 | E4: ='Sabit Maliyet'!$F$4 -> 219300.0035 | F4: ='Sabit Maliyet'!$F$4 -> 219300.0035 | G4: ='Sabit Maliyet'!$F$4 -> 219300.0035 | H4: ='Sabit Maliyet'!$F$4 -> 219300.0035 | I4: ='Sabit Maliyet'!$F$4 -> 219300.0035 | J4: ='Sabit Maliyet'!$F$4 -> 219300.0035 | K4: ='Sabit Maliyet'!$F$4 -> 219300.0035
A5: TOPLAM | B5: =SUM(B3:B4) -> 533760.0035 | C5: =SUM(C3:C4) -> 743400.0035 | D5: 1005450.004 | E5: 1267500.004 | F5: 1477140.004 | G5: 1791600.004 | H5: 2053650.004 | I5: 2315700.004 | J5: 2839800.004 | K5: 3363900.004
A7: BİRİM MALİYET (TL/m3) | B7: =B5/B2 -> 177.9200012 | C7: =C5/C2 -> 148.6800007 | D7: 134.0600005 | E7: 126.7500004 | F7: 123.0950003 | G7: 119.4400002 | H7: 117.3514288 | I7: 115.7850002 | J7: 113.5920001 | K7: 112.1300001
A8: DEĞİŞKEN MALİYET ORANI (%) | B8: =B3/B5 -> 0.5891411832 | C8: =C3/C5 -> 0.7050040322 | D8: 0.7818887038 | E8: 0.8269822462 | F8: 0.8515374284 | G8: 0.8775954437 | H8: 0.893214519 | I8: 0.9052986124 | J8: 0.9227762507 | K8: 0.9348078114
A10: SATIŞ FİYATI | B10: 120 | C10: 120 | D10: 120 | E10: 120 | F10: 120 | G10: 120 | H10: 120 | I10: 120 | J10: 120 | K10: 120
A11: KAR/ZARAR (TL/m3) | B11: =B10-B7 -> -57.92000117 | C11: =C10-C7 -> -28.6800007 | D11: -14.06000047 | E11: -6.750000351 | F11: -3.095000293 | G11: 0.559999766 | H11: 2.648571228 | I11: 4.214999824 | J11: 6.40799986 | K11: 7.869999883
A12: TOPLAM KAR/ZARAR (TL) | B12: =B11*B2 -> -173760.0035 | C12: =C11*C2 -> -143400.0035 | D12: -105450.0035 | E12: -67500.00351 | F12: -37140.00351 | G12: 8399.996489 | H12: 46349.99649 | I12: 84299.99649 | J12: 160199.9965 | K12: 236099.9965
A14: BBN (BAŞA BAŞ NOKTASI) (m3) | B14: ='Sabit Maliyet'!F4/('Maliyet Hesabı'!F23-'Maliyet Hesabı'!G15-'Maliyet Hesabı'!F17) -> 8709.293229
A17: SARI RENKLİ HÜCRELERE VERİ GİRİNİZ.

Sheet Day.Sınıfına Göre Maliyet
D2: Reçete (kg/m3)
B3: Hammadde | C3: Birim fiyat (TL/ton) | D3: C16/20 | E3: C20/25 | F3: C25/30 | G3: C30/37 | H3: C35/45 | I3: C40/50 | J3: C45/55 | K3: C50/60
B4: 1 NO | C4: 15 | D4: 510 | E4: 510 | F4: 510 | G4: 510 | H4: 510 | I4: 510 | J4: 510 | K4: 510 | M4: =$C$4*D4/1000 -> 7.65 | N4: =$C$4*E4/1000 -> 7.65 | O4: 7.65 | P4: 7.65 | Q4: 7.65 | R4: 7.65 | S4: 7.65 | T4: =$C$4*K4/1000 -> 7.65
B5: 2 NO | C5: 15 | D5: 500 | E5: 500 | F5: 500 | G5: 500 | H5: 500 | I5: 500 | J5: 500 | K5: 500 | M5: =$C$5*D5/1000 -> 7.5 | N5: =$C$5*E5/1000 -> 7.5 | O5: 7.5 | P5: 7.5 | Q5: 7.5 | R5: 7.5 | S5: 7.5 | T5: =$C$5*K5/1000 -> 7.5
B6: TAŞ TOZU | C6: 15 | D6: 500 | E6: 500 | F6: 500 | G6: 480 | H6: 450 | I6: 450 | J6: 420 | K6: 420 | M6: =$C$6*D6/1000 -> 7.5 | N6: =$C$6*E6/1000 -> 7.5 | O6: 7.5 | P6: 7.2 | Q6: 6.75 | R6: 6.75 | S6: 6.3 | T6: =$C$6*K6/1000 -> 6.3
B7: KUM | C7: 20 | D7: 400 | E7: 400 | F7: 400 | G7: 400 | H7: 400 | I7: 380 | J7: 380 | K7: 360 | M7: =$C$7*D7/1000 -> 8 | N7: =$C$7*E7/1000 -> 8 | O7: 8 | P7: 8 | Q7: 8 | R7: 7.6 | S7: 7.6 | T7: =$C$7*K7/1000 -> 7.2
B8: GERİ DÖN. AGREGA | C8: 0 | D8: 0 | E8: 0 | F8: 0 | G8: 0 | H8: 0 | I8: 0 | J8: 0 | K8: 0 | M8: =$C$8*D8/1000 -> 0 | N8: =$C$8*E8/1000 -> 0 | O8: 0 | P8: 0 | Q8: 0 | R8: 0 | S8: 0 | T8: =$C$8*K8/1000 -> 0
B9: SU | C9: 3 | D9: 100 | E9: 100 | F9: 100 | G9: 100 | H9: 100 | I9: 100 | J9: 100 | K9: 100 | M9: =$C$9*D9/1000 -> 0.3 | N9: =$C$9*E9/1000 -> 0.3 | O9: 0.3 | P9: 0.3 | Q9: 0.3 | R9: 0.3 | S9: 0.3 | T9: =$C$9*K9/1000 -> 0.3
B10: GERİ DÖN. SU | C10: 0 | D10: 60 | E10: 60 | F10: 60 | G10: 60 | H10: 60 | I10: 60 | J10: 60 | K10: 60 | M10: =$C$10*D10/1000 -> 0 | N10: =$C$10*E10/1000 -> 0 | O10: 0 | P10: 0 | Q10: 0 | R10: 0 | S10: 0 | T10: =$C$10*K10/1000 -> 0
B11: ÇİMENTO | C11: 165 | D11: 220 | E11: 260 | F11: 230 | G11: 260 | H11: 290 | I11: 315 | J11: 390 | K11: 410 | M11: =$C$11*D11/1000 -> 36.3 | N11: =$C$11*E11/1000 -> 42.9 | O11: 37.95 | P11: 42.9 | Q11: 47.85 | R11: 51.975 | S11: 64.35 | T11: =$C$11*K11/1000 -> 67.65
B12: CÜRUF/U.KÜL | C12: 130 | D12: 0 | E12: 0 | F12: 50 | G12: 50 | H12: 50 | I12: 50 | J12: 0 | K12: 0 | M12: =$C$12*D12/1000 -> 0 | N12: =$C$12*E12/1000 -> 0 | O12: 6.5 | P12: 6.5 | Q12: 6.5 | R12: 6.5 | S12: 0 | T12: =$C$12*K12/1000 -> 0
B13: ELYAF/ÇELİK LİF | C13: 0 | D13: 0 | E13: 0 | F13: 0 | G13: 0 | H13: 0 | I13: 0 | J13: 0 | K13: 0 | M13: =$C$13*D13/1000 -> 0 | N13: =$C$13*E13/1000 -> 0 | O13: 0 | P13: 0 | Q13: 0 | R13: 0 | S13: 0 | T13: =$C$13*K13/1000 -> 0
B14: KATKI | C14: 1200 | D14: 4.5 | E14: 4.5 | F14: 4.5 | G14: 4.5 | H14: 4.5 | I14: 4.5 | J14: 4.5 | K14: 4.5 | M14: =$C$14*D14/1000 -> 5.4 | N14: =$C$14*E14/1000 -> 5.4 | O14: 5.4 | P14: 5.4 | Q14: 5.4 | R14: 5.4 | S14: 5.4 | T14: =$C$14*K14/1000 -> 5.4
B15: Birim Ağırlık(kg/m3) | D15: =SUM(D4:D14) -> 2294.5 | E15: =SUM(E4:E14) -> 2334.5 | F15: 2354.5 | G15: 2364.5 | H15: 2364.5 | I15: 2369.5 | J15: 2364.5 | K15: 2364.5 | M15: =SUM(M4:M14) -> 72.65 | N15: =SUM(N4:N14) -> 79.25 | O15: 80.8 | P15: 85.45 | Q15: 89.95 | R15: 93.675 | S15: 99.1 | T15: 102
B17: Hammadde Maliyeti (TL/m3) | D17: =M15 -> 72.65 | E17: =N15 -> 79.25 | F17: 80.8 | G17: 85.45 | H17: 89.95 | I17: 93.675 | J17: 99.1 | K17: 102
B18: Operasyonel Giderler (TL/m3) | D18: =SUM('Maliyet Hesabı'!$C$25,'Maliyet Hesabı'!$C$26,'Maliyet Hesabı'!$C$24,'Maliyet Hesabı'!$C$23) -> 13.83 | E18: =SUM('Maliyet Hesabı'!$C$25,'Maliyet Hesabı'!$C$26,'Maliyet Hesabı'!$C$24,'Maliyet Hesabı'!$C$23) -> 13.83 | F18: =SUM('Maliyet Hesabı'!$C$25,'Maliyet Hesabı'!$C$26,'Maliyet Hesabı'!$C$24,'Maliyet Hesabı'!$C$23) -> 13.83 | G18: =SUM('Maliyet Hesabı'!$C$25,'Maliyet Hesabı'!$C$26,'Maliyet Hesabı'!$C$24,'Maliyet Hesabı'!$C$23) -> 13.83 | H18: =SUM('Maliyet Hesabı'!$C$25,'Maliyet Hesabı'!$C$26,'Maliyet Hesabı'!$C$24,'Maliyet Hesabı'!$C$23) -> 13.83 | I18: =SUM('Maliyet Hesabı'!$C$25,'Maliyet Hesabı'!$C$26,'Maliyet Hesabı'!$C$24,'Maliyet Hesabı'!$C$23) -> 13.83 | J18: =SUM('Maliyet Hesabı'!$C$25,'Maliyet Hesabı'!$C$26,'Maliyet Hesabı'!$C$24,'Maliyet Hesabı'!$C$23) -> 13.83 | K18: =SUM('Maliyet Hesabı'!$C$25,'Maliyet Hesabı'!$C$26,'Maliyet Hesabı'!$C$24,'Maliyet Hesabı'!$C$23) -> 13.83
B19: Sabit Maliyet (TL/m3) | D19: ='Maliyet Hesabı'!$F$16 -> 17.54400028 | E19: ='Maliyet Hesabı'!$F$16 -> 17.54400028 | F19: ='Maliyet Hesabı'!$F$16 -> 17.54400028 | G19: ='Maliyet Hesabı'!$F$16 -> 17.54400028 | H19: ='Maliyet Hesabı'!$F$16 -> 17.54400028 | I19: ='Maliyet Hesabı'!$F$16 -> 17.54400028 | J19: ='Maliyet Hesabı'!$F$16 -> 17.54400028 | K19: ='Maliyet Hesabı'!$F$16 -> 17.54400028
B20: Toplam Maliyet (TL/m3) | D20: =SUM(D17:D19) -> 104.0240003 | E20: =SUM(E17:E19) -> 110.6240003 | F20: 112.1740003 | G20: 116.8240003 | H20: 121.3240003 | I20: 125.0490003 | J20: 130.4740003 | K20: 133.3740003
D21: 24 | E21: 29 | F21: 34 | G21: 41 | H21: 49 | I21: 54 | J21: 59 | K21: 64
B22: Ortalama Dayanım(MPa)
B23: Birim Dayanım Maliyeti (TL/MPa) | D23: =D17/D24 -> 3.027083333 | E23: =E17/E24 -> 2.732758621 | F23: =F17/F24 -> 2.376470588 | G23: 2.084146341 | H23: 1.835714286 | I23: 1.734722222 | J23: 1.679661017 | K23: 1.59375
D24: =IF(D22="",D21,D22) -> 24 | E24: =IF(E22="",E21,E22) -> 29 | F24: 34 | G24: 41 | H24: 49 | I24: 54 | J24: 59 | K24: 64
B26: SARI RENKLİ HÜCRELERE VERİ GİRİNİZ.

Sheet Karlılık Analizi
D2: C16/20 | E2: C20/25 | F2: C25/30 | G2: C30/37 | H2: C35/45 | I2: C40/50 | J2: C45/55 | K2: C50/60
B3: Toplam Maliyet (TL/m3) | D3: ='Day.Sınıfına Göre Maliyet'!D20 -> 104.0240003 | E3: ='Day.Sınıfına Göre Maliyet'!E20 -> 110.6240003 | F3: ='Day.Sınıfına Göre Maliyet'!F20 -> 112.1740003 | G3: ='Day.Sınıfına Göre Maliyet'!G20 -> 116.8240003 | H3: ='Day.Sınıfına Göre Maliyet'!H20 -> 121.3240003 | I3: ='Day.Sınıfına Göre Maliyet'!I20 -> 125.0490003 | J3: ='Day.Sınıfına Göre Maliyet'!J20 -> 130.4740003 | K3: ='Day.Sınıfına Göre Maliyet'!K20 -> 133.3740003
B4: Satış Fiyatı (TL/m3) | D4: 108 | E4: 115 | F4: 117 | G4: 120 | H4: 125 | I4: 130 | J4: 134 | K4: 140
B6: Net Kar (TL) | D6: =D4-D3 -> 3.975999719 | E6: =E4-E3 -> 4.375999719 | F6: 4.825999719 | G6: 3.175999719 | H6: 3.675999719 | I6: 4.950999719 | J6: 3.525999719 | K6: 6.625999719
B7: Kar % | D7: =D6/D3 -> 0.03822194598 | E7: =E6/E3 -> 0.03955741709 | F7: 0.04302244466 | G7: 0.02718619215 | H7: 0.03029903161 | I7: 0.03959247741 | J7: 0.02702453908 | K7: 0.04967984544
A23: SARI RENKLİ HÜCRELERE VERİ GİRİNİZ.

Sheet Sevkiyat
B2: HAMMADDE NAKLİYE | G2: HAZIR BETON NAKLİYE
A4: ORTALAMA | C4: Miktar | D4: Ton/sefer | E4: Sefer | H4: Miktar
B5: Aylık Ortalama Üretim (m3) | C5: ='Sabit Maliyet'!J4 -> 12500 | G5: Aylık Ortalama Üretim (m3) | H5: ='Sabit Maliyet'!J4 -> 12500
B6: Günlük Ortalama Üretim (m3) | C6: =C5/30 -> 416.6666667 | G6: Günlük Ortalama Üretim (m3) | H6: =H5/30 -> 416.6666667
B7: Günlük Hammadde İhtiyacı | G7: Trankmikser Ort. Yük (m3) | H7: 8
B8: Mıcır(ton) | C8: =C6*'Maliyet Hesabı'!$C$4/1000 -> 212.5 | D8: 25 | E8: =C8/D8 -> 8.5 | G8: Günlük sefer sayısı | H8: =H6/H7 -> 52.08333333
B9: Kum(ton) | C9: =C6*'Maliyet Hesabı'!$C$7/1000 -> 158.3333333 | D9: 25 | E9: =C9/D9 -> 6.333333333
B10: Çimento(ton) | C10: =C6*'Maliyet Hesabı'!$C$11/1000 -> 104.1666667 | D10: 30 | E10: 3.472222222
B11: Toplam(ton) | C11: =SUM(C8:C10) -> 475 | E11: =SUM(E8:E10) -> 18.30555556
A15: MAKSİMUM | C15: Miktar | D15: Ton/sefer | E15: Sefer | H15: Miktar
B16: Günlük Max.Üretim (m3) | C16: 1000 | G16: Günlük Ortalama Üretim (m3) | H16: 1000
B17: Günlük Hammadde İhtiyacı | G17: Trankmikser Ort. Yük (m3) | H17: 8
B18: Mıcır(ton) | C18: =C16*'Maliyet Hesabı'!$C$4/1000 -> 510 | D18: 25 | E18: =C18/D18 -> 20.4 | G18: Günlük sefer sayısı | H18: =H16/H17 -> 125
B19: Kum(ton) | C19: =C16*'Maliyet Hesabı'!$C$7/1000 -> 380 | D19: 25 | E19: =C19/D19 -> 15.2
B20: Çimento(ton) | C20: =C16*'Maliyet Hesabı'!$C$11/1000 -> 250 | D20: 30 | E20: 8.333333333
B21: Toplam(ton) | C21: =SUM(C18:C20) -> 1140 | E21: =SUM(E18:E20) -> 43.93333333

Sheet Sheet2 (hidden)

Sheet Sheet3 (hidden)
